[Event "10th IM Marmaris Karia 2019"]
[Site "Marmaris"]
[Date "2019.10.18"]
[Round "1.1"]
[White "Kiremitciyan, Ari"]
[Black "Rasulov, Vugar"]
[Result "0-1"]
[ECO "C95"]
[WhiteElo "2286"]
[BlackElo "2506"]
[Annotator "ChessBase"]
[PlyCount "98"]
[EventDate "2019.10.19"]
[EventType "schev"]
[EventCountry "TUR"]
[SourceTitle "playchess.com"]
[Source "ChessBase"]
[SourceQuality "1"]
[TimeControl "5400+30"]

1. e4 {[%emt 0:00:30]} e5 {[%emt 0:02:30]} 2. Nf3 {[%emt 0:00:00]} Nc6 {[%emt 0:00:00]} 3. Bb5 {[%emt 0:00:00]} a6 {[%emt 0:00:00]} 4. Ba4 {[%emt 0:00:30]} Nf6 {[%emt 0:00:30]} 5. O-O {[%emt 0:00:30]} Be7 {[%emt 0:00:30]} 6. Re1 {[%emt 0:00:00]} b5 {[%emt 0:00:30]} 7. Bb3 {[%emt 0:00:00]} O-O {[%emt 0:00:00]} 8. h3 {[%emt 0:04:30]} d6 {[%emt 0:00:00]} 9. c3 {[%emt 0:00:30]} Nb8 {[%emt 0:00:30]} 10. d4 {[%emt 0:00:30]} Nbd7 {[%emt 0:00:30]} 11. Nbd2 {[%emt 0:00:30]} Bb7 {[%emt 0:00:00]} 12. Bc2 {[%emt 0:02:30]} Re8 {[%emt 0:00:00]} 13. Nf1 {[%emt 0:00:00]} Bf8 {[%emt 0:00:30]} 14. Ng3 {[%emt 0:01:00]} g6 {[%emt 0:00:00]} 15. a4 {[%emt 0:00:30]} Bg7 {[%emt 0:02:00]} 16. Bg5 {[%emt 0:07:30]} h6 {[%emt 0:05:30]} 17. Bd2 {[%emt 0:00:30]} Qe7 {[%emt 0:00:30]} 18. Qc1 {[%emt 0:01:30]} Qf8 {[%emt 0:00:30]} 19. Bd3 {[%emt 0:03:30]} c6 {[%emt 0:00:00]} 20. Qd1 {[%emt 0:07:30]} Nh7 {[%emt 0:12:00]} 21. Qc2 {[%emt 0:07:30]} Qe7 {[%emt 0:00:30]} 22. Qc1 {[%emt 0:01:30]} h5 {[%emt 0:00:30]} 23. Bh6 {[%emt 0:06:30]} Bf6 {[%emt 0:00:30]} 24. Qd2 {[%emt 0:05:30]} Red8 {[%emt 0:02:30]} 25. Nf1 {[%emt 0:03:30]} Ndf8 {[%emt 0:02:30]} 26. Bc2 {[%emt 0:03:30]} Ne6 {[%emt 0:00:30]} 27. Be3 {[%emt 0:02:30]} Nhg5 {[%emt 0:08:30]} 28. N1h2 {[%emt 0:02:30]} Rab8 {[%emt 0:05:30]} 29. Rf1 {[%emt 0:05:30]} Nh7 {[%emt 0:05:30]} 30. Rfd1 {[%emt 0:03:30]} Neg5 {[%emt 0:00:30]} 31. Qe2 {[%emt 0:13:20]} exd4 {[%emt 0:02:30]} 32. Bxd4 {[%emt 0:01:03]} c5 {[%emt 0:02:30]} 33. Bxf6 {[%emt 0:00:27]} Qxf6 {[%emt 0:00:30]} 34. axb5 {[%emt 0:00:20]} axb5 {[%emt 0:00:30]} 35. Nxg5 {[%emt 0:02:43]} Nxg5 {[%emt 0:01:30]} 36. h4 {[%emt 0:02:33]} Ne6 {[%emt 0:00:30]} 37. g3 {[%emt 0:00:06]} c4 {[%emt 0:02:30]} 38. Ra5 {[%emt 0:05:16]} Bc6 {[%emt 0:01:30]} 39. Ra6 {[%emt 0:00:29]} Rbc8 {[%emt 0:00:30]} 40. Qe3 {[%emt 0:01:43]} Nc5 {[%emt 0:00:30]} 41. Ra7 {[%emt 0:04:36]} Re8 {[%emt 0:00:30]} 42. f3 {[%emt 0:03:14]} Qe5 {[%emt 0:03:30]} 43. Qg5 {[%emt 0:00:56]} Ra8 {[%emt 0:01:30]} 44. Qxe5 {[%emt 0:00:30]} dxe5 {[%emt 0:00:30]} 45. Rc7 {[%emt 0:00:30]} Re6 {[%emt 0:00:30]} 46. Nf1 {[%emt 0:00:30]} Na6 {[%emt 0:00:30]} 47. Rxc6 {[%emt 0:00:30]} Rxc6 {[%emt 0:00:30]} 48. Rd5 {[%emt 0:00:30]} Nc7 {[%emt 0:00:30]} 49. Rxe5 {[%emt 0:00:30]} Kf8 {[%emt 0:00:30]} 0-1

[Event "10th IM Marmaris Karia 2019"]
[Site "Marmaris"]
[Date "2019.10.18"]
[Round "1.2"]
[White "Sahin, Ozgun"]
[Black "Sevdimaliyev, Urfan"]
[Result "0-1"]
[ECO "B03"]
[WhiteElo "2224"]
[BlackElo "2361"]
[Annotator "NA"]
[PlyCount "84"]
[EventDate "2019.10.19"]
[EventType "schev"]
[EventCountry "TUR"]
[SourceTitle "playchess.com"]
[Source "ChessBase"]
[SourceQuality "1"]
[TimeControl "5400+30"]

1. e4 {[%emt 0:00:30]} Nf6 {[%emt 0:01:30]} 2. e5 {[%emt 0:00:00]} Nd5 {[%emt 0:00:30]} 3. d4 {[%emt 0:00:00]} Nb6 {[%emt 0:00:30]} 4. c4 {[%emt 0:00:30]} d6 {[%emt 0:00:30]} 5. exd6 {[%emt 0:00:30]} cxd6 {[%emt 0:01:30]} 6. Nc3 {[%emt 0:00:30]} g6 {[%emt 0:00:30]} 7. Be3 {[%emt 0:00:30]} Bg7 {[%emt 0:00:00]} 8. Rc1 {[%emt 0:00:30]} O-O {[%emt 0:00:00]} 9. b3 {[%emt 0:00:30]} Bf5 {[%emt 0:02:30]} 10. Be2 {[%emt 0:02:30] B03: Alekhine's Defence: Four Pawns Attack} e5 {[%emt 0:18:30]} 11. dxe5 {[%emt 0:04:30]} (11. Nf3 $14) 11... dxe5 {[%emt 0:00:30]} 12. Nb5 {[%emt 0:20:30]} Nc6 {[%emt 0:10:30]} 13. Bc5 $146 {[%emt 0:04:30]} ({Predecessor:} 13. Nf3 $11 {keeps the balance.} Nb4 14. O-O Nd3 15. Rc2 a6 16. Nc3 e4 17. Nxe4 Bxe4 18. Bxd3 Qxd3 {½-½ (40) Delchev,A (2556)-Dimitrov,R (2535) Kozloduy 2019}) 13... Bh6 {[%emt 0:09:30]} (13... Qf6 $17 14. Qd6 Be6) 14. Rc3 $2 {[%emt 0:03:30] [#]} (14. Qxd8 $1 $11 Rfxd8 15. Be3 Bxe3 16. fxe3) 14... Qxd1+ {[%emt 0:05:30]} (14... Qf6 $1 $19 15. Bxf8 Rxf8) 15. Bxd1 {[%emt 0:00:30]} Rfd8 {[%emt 0:00:30]} 16. Be3 {[%emt 0:08:30]} Bf8 {[%emt 0:05:30]} 17. g4 {[%emt 0:03:30]} (17. Ne2 $17 {was worth a try.}) 17... Be6 {[%emt 0:05:30]} 18. a3 {[%emt 0:06:30]} Nd4 {[%emt 0:06:30]} (18... Rd7 $19 19. Rc1 a6) 19. Nc7 {[%emt 0:09:30]} Bxa3 {[%emt 0:03:30]} 20. Nxa8 {[%emt 0:00:30] [#]} Bb4 $1 {[%emt 0:01:30]} (20... Rxa8 21. Rd3 $15) ({Much less strong is} 20... Nxa8 21. Bg5 $15) 21. Bd2 {[%emt 0:01:30]} Bxc3 {[%emt 0:03:30]} 22. Bxc3 {[%emt 0:00:30]} Nxa8 {[%emt 0:01:30]} 23. h3 {[%emt 0:02:30]} b5 {[%emt 0:02:52]} 24. cxb5 {[%emt 0:00:30]} Bd5 {[%emt 0:03:48]} 25. Rh2 {[%emt 0:03:30]} Nxb5 {[%emt 0:01:37]} 26. Bb2 {[%emt 0:00:30]} Nb6 {[%emt 0:04:38]} 27. f3 {[%emt 0:00:30]} f6 $15 {[%emt 0:02:33]} 28. Rd2 {[%emt 0:02:30]} Re8 {[%emt 0:00:46]} 29. Kf2 {[%emt 0:00:30]} Nd6 {[%emt 0:01:35]} 30. Ba3 {[%emt 0:03:30]} Nb7 {[%emt 0:00:30]} 31. Ne2 {[%emt 0:00:30]} Na5 {[%emt 0:02:49]} 32. Nc3 {[%emt 0:05:23]} Bxb3 {[%emt 0:01:37]} 33. Ne4 {[%emt 0:00:05]} Kg7 {[%emt 0:00:37]} 34. Bxb3 {[%emt 0:09:10]} Nxb3 {[%emt 0:00:02]} 35. Rd6 {[%emt 0:00:06]} f5 {[%emt 0:01:13]} 36. Nf6 {[%emt 0:00:02]} Rc8 {[%emt 0:01:29]} 37. g5 {[%emt 0:00:24]} Rc2+ {[%emt 0:00:41]} 38. Ke1 {[%emt 0:01:52]} Nd4 {[%emt 0:01:12]} 39. Rd8 {[%emt 0:00:59]} Nxf3+ {[%emt 0:00:48]} 40. Kd1 {[%emt 0:00:10]} Rc8 {[%emt 0:00:32]} 41. Ne8+ {[%emt 0:01:36]} Kg8 {[%emt 0:00:19]} 42. Nf6+ {[%emt 0:00:35]} Kf7 {[%emt 0:00:16]} 0-1

[Event "10th IM Marmaris Karia 2019"]
[Site "Marmaris"]
[Date "2019.10.18"]
[Round "1.4"]
[White "Gunduz, Umut Erdem"]
[Black "Semiev, Suhrab"]
[Result "1-0"]
[ECO "B06"]
[WhiteElo "2165"]
[BlackElo "2290"]
[Annotator "NA"]
[PlyCount "133"]
[EventDate "2019.10.19"]
[EventType "schev"]
[EventCountry "TUR"]
[SourceTitle "playchess.com"]
[Source "ChessBase"]
[SourceQuality "1"]
[TimeControl "5400+30"]

1. e4 {[%emt 0:00:30]} g6 {[%emt 0:00:30]} 2. d4 {[%emt 0:00:00]} Bg7 {[%emt 0:00:00]} 3. Nc3 {[%emt 0:00:00]} d5 {[%emt 0:01:00]} 4. exd5 {[%emt 0:02:30]} Nf6 {[%emt 0:00:00]} 5. Bc4 {[%emt 0:00:30]} O-O {[%emt 0:01:00]} 6. Nf3 {[%emt 0:07:30] B06: Modern Defence} Nbd7 {[%emt 0:00:00]} 7. O-O {[%emt 0:00:00]} Nb6 {[%emt 0:00:00]} 8. Bb3 {[%emt 0:00:00]} a5 {[%emt 0:00:00]} 9. a4 {[%emt 0:00:30]} Nbxd5 {[%emt 0:00:00]} 10. Nxd5 {[%emt 0:00:30]} Nxd5 {[%emt 0:00:30]} 11. Re1 {[%emt 0:01:30]} e6 {[%emt 0:08:30]} 12. Bg5 {[%emt 0:02:30]} Qd6 {[%emt 0:00:30]} 13. Qd2 $146 {[%emt 0:03:30]} ({Predecessor:} 13. c4 Nb4 14. c5 {1-0 (31) Muzychuk,A (2585)-Darban,M (2358) Baku 2013}) 13... b6 {[%emt 0:00:30]} 14. Bh6 {[%emt 0:07:30]} Bb7 {[%emt 0:00:30]} 15. Bxg7 {[%emt 0:07:30]} Kxg7 {[%emt 0:00:30]} 16. Ne5 {[%emt 0:00:30]} Rad8 {[%emt 0:07:30]} 17. Rad1 {[%emt 0:16:30]} h6 {[%emt 0:00:00]} 18. c3 {[%emt 0:09:30]} Ne7 {[%emt 0:05:00]} 19. Re3 {[%emt 0:07:30]} Nf5 {[%emt 0:00:30]} 20. Rh3 {[%emt 0:01:30]} Rh8 {[%emt 0:07:30]} 21. Re1 {[%emt 0:03:30]} Qe7 {[%emt 0:09:30]} 22. Bc2 {[%emt 0:11:56]} Qf6 {[%emt 0:07:30]} (22... Rde8 $11) 23. f3 {[%emt 0:09:34]} ({White should play} 23. g4 $16 Nh4 24. Be4 Qxe5 25. f4 (25. Bxb7 Qg5 $11)) 23... h5 {[%emt 0:05:30]} 24. Qf2 {[%emt 0:01:24]} Ne7 {[%emt 0:05:30]} 25. Bb3 {[%emt 0:03:35]} Nd5 {[%emt 0:01:30]} 26. Bxd5 {[%emt 0:02:09]} Rxd5 {[%emt 0:00:30]} 27. Qg3 $15 {[%emt 0:00:25]} (27. Rh4 $11) 27... c5 {[%emt 0:01:30]} 28. Rh4 {[%emt 0:00:40]} Qe7 {[%emt 0:13:30]} 29. Rf4 {[%emt 0:00:12]} Rf8 {[%emt 0:10:49]} 30. dxc5 {[%emt 0:00:39]} Qxc5+ {[%emt 0:04:39]} 31. Kh1 {[%emt 0:00:01]} Qe7 {[%emt 0:00:40]} 32. h4 {[%emt 0:00:32]} Bc8 {[%emt 0:06:14]} 33. Kh2 {[%emt 0:01:20]} Bd7 {[%emt 0:01:46]} 34. Re3 {[%emt 0:00:31]} Be8 {[%emt 0:00:14]} 35. Nc4 {[%emt 0:00:29]} Qd8 {[%emt 0:01:01]} 36. Re5 {[%emt 0:00:24]} Bxa4 {[%emt 0:02:58]} 37. Rxd5 {[%emt 0:00:10]} exd5 {[%emt 0:00:06]} 38. Ne3 {[%emt 0:00:10]} Bc6 {[%emt 0:00:45]} 39. Nf5+ {[%emt 0:01:04]} Kh7 {[%emt 0:00:01]} 40. Nd4 {[%emt 0:00:07]} Bb7 {[%emt 0:00:44]} 41. Qg5 {[%emt 0:00:49]} Qxg5 {[%emt 0:00:09]} 42. hxg5 {[%emt 0:00:02]} Kg7 {[%emt 0:00:22]} 43. Rf6 {[%emt 0:00:03]} Ba6 {[%emt 0:00:44]} 44. Rxb6 {[%emt 0:00:23]} Bc4 {[%emt 0:00:19]} 45. Kg3 {[%emt 0:01:48]} a4 {[%emt 0:00:28]} 46. Rb7 {[%emt 0:00:26]} Ra8 {[%emt 0:00:54]} 47. Ne6+ {[%emt 0:00:13]} Kg8 {[%emt 0:00:01]} 48. Nc7 {[%emt 0:00:33]} Rc8 {[%emt 0:00:18]} 49. Kf4 {[%emt 0:00:24]} Kf8 {[%emt 0:00:20]} 50. g3 {[%emt 0:00:46]} Rd8 {[%emt 0:01:26]} 51. Ke5 {[%emt 0:00:21]} Bb3 {[%emt 0:00:40]} 52. Ra7 {[%emt 0:00:24]} Rc8 {[%emt 0:00:42]} 53. Ra8 {[%emt 0:00:13]} Rxa8 {[%emt 0:00:17]} 54. Nxa8 {[%emt 0:00:01]} Ke7 {[%emt 0:00:32]} 55. Nb6 {[%emt 0:00:06]} Kd8 {[%emt 0:00:28]} 56. Nxd5 {[%emt 0:00:09]} Kd7 {[%emt 0:00:06]} 57. f4 {[%emt 0:00:52]} Kc6 {[%emt 0:00:20]} 58. Nb4+ {[%emt 0:01:06]} Kc5 {[%emt 0:00:14]} 59. Nd3+ {[%emt 0:00:55]} Kb5 {[%emt 0:01:14]} 60. Kd4 {[%emt 0:00:11]} Be6 {[%emt 0:00:40]} 61. Ne5 {[%emt 0:00:51]} Ba2 {[%emt 0:00:28]} 62. Nf3 {[%emt 0:00:39]} Bb3 {[%emt 0:00:24]} 63. Nd2 {[%emt 0:00:10]} Be6 {[%emt 0:00:06]} 64. Ne4 {[%emt 0:00:55]} Ba2 {[%emt 0:00:29]} 65. Nd6+ {[%emt 0:00:44]} Kc6 {[%emt 0:00:02]} 66. Nc4 {[%emt 0:00:27]} Kb5 {[%emt 0:00:05]} 67. Na3+ {[%emt 0:00:00]} 1-0

[Event "10th IM Marmaris Karia 2019"]
[Site "Marmaris"]
[Date "2019.10.18"]
[Round "2.1"]
[White "Sevdimaliyev, Urfan"]
[Black "Kiremitciyan, Ari"]
[Result "1/2-1/2"]
[ECO "D02"]
[WhiteElo "2361"]
[BlackElo "2286"]
[Annotator "NA"]
[PlyCount "60"]
[EventDate "2019.10.19"]
[EventType "schev"]
[EventCountry "TUR"]
[SourceTitle "playchess.com"]
[Source "ChessBase"]
[SourceQuality "1"]
[TimeControl "5400+30"]

1. d4 {[%emt 0:01:30]} Nf6 {[%emt 0:00:30]} 2. Nf3 {[%emt 0:00:30]} d5 {[%emt 0:00:00]} 3. Bf4 {[%emt 0:03:30]} c5 {[%emt 0:00:00]} 4. e3 {[%emt 0:01:30]} Nc6 {[%emt 0:00:00]} 5. c3 {[%emt 0:00:30]} Qb6 {[%emt 0:00:00]} 6. Qb3 {[%emt 0:00:30]} c4 {[%emt 0:00:30]} 7. Qc2 {[%emt 0:00:30]} Bf5 {[%emt 0:00:00]} 8. Qc1 {[%emt 0:00:00]} e6 {[%emt 0:01:00]} 9. Nbd2 {[%emt 0:01:00]} Rc8 {[%emt 0:00:30]} 10. h3 {[%emt 0:01:30]} h6 {[%emt 0:01:30]} 11. Be2 {[%emt 0:00:30]} Be7 {[%emt 0:01:30]} 12. O-O {[%emt 0:00:00]} O-O {[%emt 0:02:30]} 13. Bd1 {[%emt 0:00:00]} Qd8 {[%emt 0:03:30]} 14. Bc2 {[%emt 0:01:30]} Bd6 {[%emt 0:03:30]} 15. Bxd6 {[%emt 0:03:30]} Qxd6 {[%emt 0:00:30]} 16. Re1 {[%emt 0:00:30]} Ne4 {[%emt 0:17:30]} 17. Nxe4 {[%emt 0:09:30]} Bxe4 {[%emt 0:00:30]} 18. Bxe4 {[%emt 0:01:30]} dxe4 {[%emt 0:00:30]} 19. Nd2 {[%emt 0:00:30]} Qd5 {[%emt 0:00:30]} 20. Qc2 {[%emt 0:23:30]} f5 {[%emt 0:00:00]} 21. f3 {[%emt 0:01:30]} exf3 {[%emt 0:01:00]} 22. Nxf3 {[%emt 0:02:30]} e5 {[%emt 0:04:30]} 23. e4 {[%emt 0:02:30]} fxe4 {[%emt 0:00:30]} 24. Qxe4 {[%emt 0:00:30]} Qxe4 {[%emt 0:00:30]} 25. Rxe4 {[%emt 0:00:00]} exd4 {[%emt 0:00:30]} 26. Nxd4 {[%emt 0:00:00]} Nxd4 {[%emt 0:00:30]} 27. Rxd4 {[%emt 0:00:30]} Rfd8 {[%emt 0:11:30]} 28. Rad1 {[%emt 0:01:30]} Rxd4 {[%emt 0:00:30]} 29. Rxd4 {[%emt 0:00:30]} Rc6 {[%emt 0:00:30]} 30. Rd8+ {[%emt 0:01:30]} Kh7 {[%emt 0:00:30]} 1/2-1/2

[Event "10th IM Marmaris Karia 2019"]
[Site "Marmaris"]
[Date "2019.10.18"]
[Round "2.2"]
[White "Guseynov, Alihan"]
[Black "Sahin, Ozgun"]
[Result "1/2-1/2"]
[ECO "A11"]
[WhiteElo "2335"]
[BlackElo "2224"]
[Annotator "NA"]
[PlyCount "85"]
[EventDate "2019.10.19"]
[EventType "schev"]
[EventCountry "TUR"]
[SourceTitle "playchess.com"]
[Source "ChessBase"]
[SourceQuality "1"]
[TimeControl "5400+30"]

1. Nf3 {[%emt 0:00:30]} d5 {[%emt 0:00:30]} 2. c4 {[%emt 0:01:30]} c6 {[%emt 0:00:00]} 3. e3 {[%emt 0:00:30]} Nf6 {[%emt 0:00:00]} 4. Nc3 {[%emt 0:00:30]} e6 {[%emt 0:00:30]} 5. Qc2 {[%emt 0:00:30]} Nbd7 {[%emt 0:00:30]} 6. b3 {[%emt 0:01:30]} Bd6 {[%emt 0:00:30]} 7. Bb2 {[%emt 0:00:30]} O-O {[%emt 0:02:30]} 8. Be2 {[%emt 0:02:30]} Qe7 {[%emt 0:01:30]} 9. O-O {[%emt 0:01:30]} b6 {[%emt 0:00:30]} 10. cxd5 {[%emt 0:04:30]} exd5 {[%emt 0:00:30]} 11. Nd4 {[%emt 0:01:30]} Bb7 {[%emt 0:05:30]} 12. Nf5 {[%emt 0:01:30]} Qe6 {[%emt 0:00:30]} 13. Nxd6 {[%emt 0:02:30]} Qxd6 {[%emt 0:00:00]} 14. d4 {[%emt 0:01:30]} Rac8 {[%emt 0:03:00]} 15. Rfd1 {[%emt 0:06:30]} Rfe8 {[%emt 0:02:30]} 16. Rac1 {[%emt 0:01:30]} Nf8 {[%emt 0:05:30]} 17. Nb1 {[%emt 0:07:30]} Ne6 {[%emt 0:03:30]} 18. Nd2 {[%emt 0:07:30]} Ng5 {[%emt 0:09:30]} 19. Nf1 {[%emt 0:14:30]} Nge4 {[%emt 0:01:30]} 20. f3 {[%emt 0:01:30]} Ng5 {[%emt 0:00:30]} 21. Bc3 {[%emt 0:01:30]} Ne6 {[%emt 0:04:30]} 22. Ng3 {[%emt 0:05:30]} Nd7 {[%emt 0:06:30]} 23. Qd2 {[%emt 0:04:30]} g6 {[%emt 0:09:30]} 24. e4 {[%emt 0:03:30]} Qf4 {[%emt 0:02:30]} 25. Qb2 {[%emt 0:05:30]} h5 {[%emt 0:03:30]} 26. Bd2 {[%emt 0:02:43]} Qf6 {[%emt 0:00:30]} 27. e5 {[%emt 0:01:53]} Qg7 {[%emt 0:00:30]} 28. Bd3 {[%emt 0:06:29]} c5 {[%emt 0:01:30]} 29. Ne2 {[%emt 0:01:54]} cxd4 {[%emt 0:05:30]} 30. Bb5 {[%emt 0:05:47]} d3 {[%emt 0:17:05]} 31. Bxd7 {[%emt 0:02:03]} dxe2 {[%emt 0:00:05]} 32. Re1 {[%emt 0:00:11]} Nc5 {[%emt 0:04:30]} 33. Bxc8 {[%emt 0:02:09]} Bxc8 {[%emt 0:00:16]} 34. Rxe2 {[%emt 0:01:56]} Nd3 {[%emt 0:02:45]} 35. Qd4 {[%emt 0:00:05]} Nxc1 {[%emt 0:00:19]} 36. Bxc1 {[%emt 0:00:01]} Be6 {[%emt 0:00:58]} 37. Bg5 {[%emt 0:01:58]} Qf8 {[%emt 0:00:12]} 38. Rc2 {[%emt 0:00:23]} Rc8 {[%emt 0:00:14]} 39. Rxc8 {[%emt 0:00:50]} Qxc8 {[%emt 0:00:03]} 40. h4 {[%emt 0:00:26]} Qc5 {[%emt 0:00:07]} 41. Qxc5 {[%emt 0:00:45]} bxc5 {[%emt 0:00:02]} 42. Be3 {[%emt 0:00:23]} d4 {[%emt 0:00:13]} 43. Bc1 {[%emt 0:00:21]} 1/2-1/2

[Event "10th IM Marmaris Karia 2019"]
[Site "Marmaris"]
[Date "2019.10.18"]
[Round "2.3"]
[White "Semiev, Suhrab"]
[Black "Citak, Selim"]
[Result "1-0"]
[ECO "D11"]
[WhiteElo "2290"]
[BlackElo "2210"]
[Annotator "NA"]
[PlyCount "105"]
[EventDate "2019.10.19"]
[EventType "schev"]
[EventCountry "TUR"]
[SourceTitle "playchess.com"]
[Source "ChessBase"]
[SourceQuality "1"]
[TimeControl "5400+30"]

1. d4 {[%emt 0:00:30]} Nf6 {[%emt 0:00:30]} 2. Nf3 {[%emt 0:00:00]} d5 {[%emt 0:00:30]} 3. g3 {[%emt 0:00:00]} Bf5 {[%emt 0:00:30]} 4. Bg2 {[%emt 0:00:30]} e6 {[%emt 0:00:30]} 5. O-O {[%emt 0:00:30]} h6 {[%emt 0:00:30]} 6. c4 {[%emt 0:00:30]} c6 {[%emt 0:00:30]} 7. Nc3 {[%emt 0:00:30]} Nbd7 {[%emt 0:00:30]} 8. Nd2 {[%emt 0:03:30]} Bd6 {[%emt 0:02:30]} 9. e4 {[%emt 0:00:30]} dxe4 {[%emt 0:01:30]} 10. Ndxe4 {[%emt 0:00:30]} Nxe4 {[%emt 0:05:30]} 11. Nxe4 {[%emt 0:00:00]} Bxe4 {[%emt 0:00:30]} 12. Bxe4 {[%emt 0:00:00]} O-O {[%emt 0:01:30]} 13. Bc2 {[%emt 0:00:30]} Nf6 {[%emt 0:01:30]} 14. b3 {[%emt 0:06:30]} Qa5 {[%emt 0:01:30]} 15. Qf3 {[%emt 0:07:30]} Qh5 {[%emt 0:02:30]} 16. Qxh5 {[%emt 0:00:30]} Nxh5 {[%emt 0:00:30]} 17. Bb2 {[%emt 0:00:30]} Rfd8 {[%emt 0:03:30]} 18. Rad1 {[%emt 0:00:30]} Nf6 {[%emt 0:00:30]} 19. Rfe1 {[%emt 0:08:30]} a5 {[%emt 0:03:30]} 20. f4 {[%emt 0:01:30]} b5 {[%emt 0:07:30]} 21. f5 {[%emt 0:03:30]} exf5 {[%emt 0:01:30]} 22. Bxf5 {[%emt 0:00:00]} bxc4 {[%emt 0:02:30]} 23. bxc4 {[%emt 0:00:00]} Rab8 {[%emt 0:00:30]} 24. Ba1 {[%emt 0:00:30]} Rb4 {[%emt 0:04:30]} 25. Rc1 {[%emt 0:00:30]} Ra4 {[%emt 0:07:30]} 26. Re2 {[%emt 0:00:30]} Ra3 {[%emt 0:01:30]} 27. Bh3 {[%emt 0:07:30]} Bb4 {[%emt 0:04:30]} 28. Bg2 {[%emt 0:00:30]} c5 {[%emt 0:06:30]} 29. d5 {[%emt 0:00:30]} Ne8 {[%emt 0:01:30]} 30. Be4 {[%emt 0:06:30]} Nd6 {[%emt 0:00:30]} 31. Bb1 {[%emt 0:00:00]} Re8 {[%emt 0:06:30]} 32. Rxe8+ {[%emt 0:07:00]} Nxe8 {[%emt 0:00:00]} 33. Be5 {[%emt 0:00:30]} Nf6 {[%emt 0:08:00]} 34. d6 {[%emt 0:07:30]} Kf8 {[%emt 0:00:30]} 35. Rd1 {[%emt 0:00:30]} Bc3 {[%emt 0:05:30]} 36. Rd3 {[%emt 0:01:30]} Bb4 {[%emt 0:04:50]} 37. Rxa3 {[%emt 0:11:30]} Ke8 {[%emt 0:00:30]} 38. Bf5 {[%emt 0:00:30]} Bxa3 {[%emt 0:00:30]} 39. Kf1 {[%emt 0:00:30]} Kd8 {[%emt 0:00:30]} 40. Ke2 {[%emt 0:00:30]} Ne8 {[%emt 0:00:30]} 41. d7 {[%emt 0:00:30]} Nf6 {[%emt 0:00:30]} 42. Kd3 {[%emt 0:00:00]} Nxd7 {[%emt 0:03:50]} 43. Bxg7 {[%emt 0:01:00]} Bc1 {[%emt 0:01:15]} 44. Bxd7 {[%emt 0:03:30]} Kxd7 {[%emt 0:00:04]} 45. a4 {[%emt 0:00:30]} f5 {[%emt 0:06:11]} 46. Bc3 {[%emt 0:00:00]} f4 {[%emt 0:00:11]} 47. g4 {[%emt 0:03:00]} f3 {[%emt 0:03:59]} 48. Be1 {[%emt 0:06:00]} Bf4 {[%emt 0:01:44]} 49. h4 {[%emt 0:01:06]} Ke6 {[%emt 0:01:29]} 50. Ke4 {[%emt 0:00:18]} Bd2 {[%emt 0:00:11]} 51. Bg3 {[%emt 0:00:19]} h5 {[%emt 0:00:12]} 52. gxh5 {[%emt 0:00:26]} Bc1 {[%emt 0:00:00]} 53. Bf2 {[%emt 0:00:48]} 1-0

[Event "10th IM Marmaris Karia 2019"]
[Site "Marmaris"]
[Date "2019.10.18"]
[Round "2.4"]
[White "Darban, Morteza"]
[Black "Gunduz, Umut Erdem"]
[Result "1-0"]
[ECO "A67"]
[WhiteElo "2285"]
[BlackElo "2165"]
[Annotator "NA"]
[PlyCount "73"]
[EventDate "2019.10.19"]
[EventType "schev"]
[EventCountry "TUR"]
[SourceTitle "playchess.com"]
[Source "ChessBase"]
[SourceQuality "1"]
[TimeControl "5400+30"]

1. d4 {[%emt 0:00:30]} Nf6 {[%emt 0:00:30]} 2. c4 {[%emt 0:00:30]} e6 {[%emt 0:00:30]} 3. Nc3 {[%emt 0:00:00]} c5 {[%emt 0:00:00]} 4. d5 {[%emt 0:00:00]} exd5 {[%emt 0:00:00]} 5. cxd5 {[%emt 0:00:00]} d6 {[%emt 0:00:00]} 6. e4 {[%emt 0:02:00]} g6 {[%emt 0:00:00]} 7. f4 {[%emt 0:00:00]} Bg7 {[%emt 0:00:00]} 8. Bb5+ {[%emt 0:00:00]} Nfd7 {[%emt 0:00:00]} 9. a4 {[%emt 0:00:30]} O-O {[%emt 0:00:30]} 10. Nf3 {[%emt 0:00:00]} Na6 {[%emt 0:00:30]} 11. O-O {[%emt 0:00:00]} Nb4 {[%emt 0:01:30]} 12. Re1 {[%emt 0:00:30]} a6 {[%emt 0:00:30]} 13. Bf1 {[%emt 0:00:30]} Nf6 {[%emt 0:01:30]} 14. h3 {[%emt 0:00:00]} Re8 {[%emt 0:00:30]} 15. Bc4 {[%emt 0:00:00]} Nd7 {[%emt 0:10:30]} 16. Be3 {[%emt 0:02:30]} Nb6 {[%emt 0:09:30]} 17. Bf1 {[%emt 0:05:30]} a5 {[%emt 0:00:30]} 18. Bf2 {[%emt 0:07:30]} Bd7 {[%emt 0:20:30]} 19. Qd2 {[%emt 0:10:30]} c4 {[%emt 0:07:30]} 20. Nd4 {[%emt 0:12:30]} Rc8 {[%emt 0:03:30]} 21. Ndb5 {[%emt 0:08:30]} Bxb5 {[%emt 0:01:30]} 22. Nxb5 {[%emt 0:02:30]} Nd3 {[%emt 0:04:30]} 23. Bxd3 {[%emt 0:03:30]} cxd3 {[%emt 0:00:30]} 24. Qxd3 {[%emt 0:00:30]} Nc4 {[%emt 0:01:30]} 25. b3 {[%emt 0:06:30]} Bxa1 {[%emt 0:11:30]} 26. Rxa1 {[%emt 0:00:30]} Nb6 {[%emt 0:00:30]} 27. Qd4 {[%emt 0:00:30]} Rc5 {[%emt 0:06:22]} 28. Nxd6 {[%emt 0:11:30]} Qxd6 {[%emt 0:00:07]} 29. Qxc5 {[%emt 0:00:30]} Qxc5 {[%emt 0:00:04]} 30. Bxc5 {[%emt 0:00:00]} Nd7 {[%emt 0:00:27]} 31. Ba3 {[%emt 0:01:00]} Rxe4 {[%emt 0:10:33]} 32. Rc1 {[%emt 0:00:00]} Nf6 {[%emt 0:01:37]} 33. Bb2 {[%emt 0:04:00]} Ne8 {[%emt 0:07:45]} 34. Rc8 {[%emt 0:00:30]} Kf8 {[%emt 0:00:54]} 35. d6 {[%emt 0:00:30]} Re1+ {[%emt 0:00:36]} 36. Kf2 {[%emt 0:00:30]} Rd1 {[%emt 0:00:07]} 37. Ba3 {[%emt 0:00:30]} 1-0

[Event "10th IM Marmaris Karia 2019"]
[Site "Marmaris"]
[Date "2019.10.18"]
[Round "2.5"]
[White "Rasulov, Vugar"]
[Black "Angun, Batu"]
[Result "1/2-1/2"]
[ECO "D03"]
[WhiteElo "2506"]
[BlackElo "2165"]
[Annotator "ChessBase"]
[PlyCount "34"]
[EventDate "2019.10.19"]
[EventType "schev"]
[EventCountry "TUR"]
[SourceTitle "playchess.com"]
[Source "ChessBase"]
[SourceQuality "1"]
[TimeControl "5400+30"]

1. Nf3 {[%emt 0:02:30]} Nf6 {[%emt 0:00:30]} 2. d4 {[%emt 0:00:00]} g6 {[%emt 0:00:00]} 3. Bg5 {[%emt 0:00:00]} Bg7 {[%emt 0:00:00]} 4. Nbd2 {[%emt 0:00:30]} d5 {[%emt 0:00:30]} 5. e3 {[%emt 0:00:00]} O-O {[%emt 0:01:30]} 6. Bd3 {[%emt 0:00:00]} c5 {[%emt 0:00:30]} 7. c3 {[%emt 0:00:30]} Nc6 {[%emt 0:01:30]} 8. O-O {[%emt 0:00:00]} Qb6 {[%emt 0:01:30]} 9. Rb1 {[%emt 0:00:00]} Bf5 {[%emt 0:01:30]} 10. dxc5 {[%emt 0:00:30]} Qxc5 {[%emt 0:00:30]} 11. Nb3 {[%emt 0:00:30]} Qd6 {[%emt 0:00:30]} 12. Bxf5 {[%emt 0:00:30]} gxf5 {[%emt 0:00:30]} 13. Nbd4 {[%emt 0:00:00]} e6 {[%emt 0:00:30]} 14. Bf4 {[%emt 0:00:00]} Qe7 {[%emt 0:00:30]} 15. Bg5 {[%emt 0:00:00]} Qd6 {[%emt 0:00:00]} 16. Bf4 {[%emt 0:00:00]} Qe7 {[%emt 0:00:00]} 17. Bg5 {[%emt 0:00:00]} Qd6 {[%emt 0:00:00]} 1/2-1/2